bitfinex-derivatives/quotes_SOLF0:USTF0_20250110
["timestamp","ask_amount","ask_price","bid_price","bid_amount"]
[1736531842085,34.23015601,191.8,191.5,34.23015601]
[1736531842393,34.23015601,191.8,191.63,34.23015601]
[1736531842985,2.608,191.75,191.59,34.23015601]
[1736531843209,34.23015601,191.8,191.63,34.23015601]
[1736531843386,90.2652,191.82,191.63,34.23015601]
[1736531843683,2.6075,191.79,191.7,2.6085]
[1736531843888,90.2652,191.82,191.7,2.6085]
[1736531844284,34.23015601,191.8,191.63,34.23015601]
[1736531844485,34.23015601,191.8,191.59,34.23015601]
[1736531844688,34.23015601,191.8,191.63,34.23015601]
[1736531844891,90.2652,191.82,191.63,34.23015601]
[1736531845094,34.23015601,191.76,191.6,34.23015601]
[1736531845495,34.23015601,191.76,191.62,2.6097]
[1736531845696,34.23015601,191.76,191.6,34.23015601]
[1736531846197,34.23015601,191.76,191.56,34.57235601]
[1736531846395,2.6084,191.72,191.56,34.57235601]
[1736531846602,34.23015601,191.76,191.6,34.23015601]
[1736531846789,34.23015601,191.8,191.64,34.23015601]
[1736531847497,2.608,191.74,191.6,34.23015601]
[1736531847808,34.23015601,191.8,191.6,34.23015601]
[1736531847997,2.6073,191.8,191.68,34.23015601]
[1736531848192,34.23015601,191.93,191.72,34.23015601]
[1736531848397,34.23015601,191.89,191.72,34.23015601]
[1736531848794,34.23015601,191.89,191.74,2.608]
[1736531849104,34.23015601,191.85,191.68,34.23015601]
[1736531849393,34.23015601,191.85,191.64,34.23015601]
[1736531849606,2.6077,191.77,191.64,34.23015601]
[1736531849903,2.6077,191.77,191.7,2.6086]
[1736531850196,34.23015601,191.81,191.64,34.23015601]
[1736531850402,34.23015601,191.81,191.51,0.5422]
[1736531850403,34.23015601,191.77,191.51,0.5422]
[1736531850602,34.23015601,191.73,191.56,34.57235601]
[1736531850898,34.23015601,191.73,191.61,2.6097]
[1736531851203,34.23015601,191.77,191.6,34.23015601]
[1736531851499,4.7023,191.8,191.64,34.23015601]
[1736531851900,4.7023,191.8,191.69,2.6087]
[1736531852193,4.7023,191.8,191.64,34.23015601]
[1736531852395,2.6081,191.74,191.67,2.6089]
[1736531852600,34.23015601,191.74,191.57,34.23015601]
[1736531852996,2.6087,191.69,191.61,2.6097]
[1736531853196,34.23015601,191.74,191.57,34.23015601]
[1736531853900,34.23015601,191.68,191.56,0.3422]
[1736531854395,2.6101,191.59,191.56,0.3422]
[1736531854600,34.23015601,191.65,191.48,34.23015601]
[1736531854801,2.6101,191.59,191.48,34.23015601]
[1736531855008,4.8604,191.67,191.54,34.23015601]
[1736531855495,4.8604,191.67,191.5,34.23015601]
[1736531856603,2.6093,191.65,191.56,34.23015601]
[1736531856800,4.8604,191.67,191.56,34.23015601]
[1736531857214,1.6569,191.67,191.63,34.23015601]
[1736531857498,1.5549,191.76,191.67,2.609]
[1736531857709,1.5549,191.76,191.66,34.23015601]
[1736531858099,1.5549,191.76,191.51,6.1053]
[1736531858298,1.5549,191.76,191.61,34.23015601]
[1736531859199,2.6083,191.72,191.66,2.6091]
[1736531859506,1.5549,191.76,191.67,34.23015601]
[1736531859694,1.6241,191.79,191.7,34.23015601]
[1736531860094,1.6241,191.79,191.73,34.23015601]
[1736531860293,1.512,191.83,191.73,34.23015601]
[1736531860510,1.512,191.83,191.76,34.23015601]
[1736531860693,1.512,191.83,191.79,34.23015601]
[1736531860900,1.5575,191.87,191.79,34.23015601]
[1736531861208,3.1019,191.98,191.82,34.23015601]
[1736531861403,1.5675,191.97,191.82,34.23015601]
[1736531861893,1.5675,191.97,191.85,34.23015601]
[1736531862506,1.5675,191.97,191.89,2.6059]
[1736531862904,1.5675,191.97,191.82,34.23015601]
[1736531863199,4.1725,191.97,191.82,34.23015601]
[1736531863403,1.5675,191.97,191.82,34.23015601]
[1736531864210,1.5575,191.98,191.88,34.23015601]
[1736531865303,4.1623,191.98,191.91,2.6057]
[1736531865502,10.14,192.08,191.88,34.23015601]
[1736531865503,34.23015601,192.05,191.88,34.23015601]
[1736531866109,2.6044,192.01,191.94,2.6053]
[1736531866298,2.6044,192.01,191.88,34.23015601]
[1736531866500,34.23015601,192.05,191.88,34.23015601]
[1736531866797,34.23015601,192.02,191.85,34.23015601]
[1736531866998,34.23015601,191.99,191.82,34.23015601]
[1736531867410,34.23015601,191.99,191.85,2.6065]
[1736531867609,34.23015601,191.99,191.82,34.23015601]
[1736531868515,34.23015601,191.99,191.86,2.6064]
[1736531868813,34.23015601,191.99,191.82,34.23015601]
[1736531869113,34.23015601,191.96,191.82,34.23015601]
[1736531869303,34.23015601,191.99,191.82,34.23015601]
[1736531869707,2.6055,191.93,191.86,2.6063]
[1736531870208,2.6056,191.92,191.84,2.6066]
[1736531870511,34.23015601,191.99,191.82,34.23015601]
[1736531870718,2.6046,192.0,191.88,34.23015601]
[1736531871010,34.23015601,192.01,191.82,34.23015601]
[1736531871205,2.6052,191.95,191.87,2.6063]
[1736531871612,2.6052,191.95,191.82,34.23015601]
[1736531871807,34.23015601,191.98,191.82,34.23015601]
[1736531872008,1.6348,191.97,191.79,34.23015601]
[1736531872208,34.23015601,191.98,191.86,2.6063]
[1736531872415,2.6053,191.94,191.82,34.23015601]
[1736531872608,34.23015601,191.94,191.79,34.23015601]
[1736531873007,1.6465,191.93,191.76,34.23015601]
[1736531873201,34.23015601,191.91,191.76,34.23015601]
[1736531873519,34.23015601,191.88,191.73,34.23015601]
[1736531873902,2.6059,191.9,191.76,34.23015601]
[1736531874111,4.8389,191.93,191.79,34.23015601]
[1736531874312,1.6465,191.93,191.82,34.23015601]
[1736531874616,2.6051,191.96,191.89,2.6059]
[1736531875121,1.6465,192.01,191.82,34.23015601]
[1736531875411,1.6465,192.01,191.87,34.23015601]
[1736531875608,4.2509,192.01,191.94,2.6053]
[1736531875815,1.6465,192.01,191.87,34.23015601]
[1736531876309,2.6047,191.99,191.92,2.6055]
[1736531876725,2.6047,191.99,191.87,34.23015601]
[1736531877110,1.6465,192.01,191.87,34.23015601]
[1736531877513,1.6465,192.01,191.95,2.6051]
[1736531877912,2.6046,192.0,191.87,34.23015601]
[1736531878103,1.6465,192.01,191.87,34.23015601]
[1736531878323,85.4,192.25,191.9,34.23015601]
[1736531878513,2.6039,192.05,191.9,34.23015601]
[1736531878928,2.6039,192.05,191.94,2.6053]
[1736531879105,2.6038,192.06,191.9,34.23015601]
[1736531879314,34.23015601,192.08,191.93,34.23015601]
[1736531879612,34.23015601,192.12,192.03,2.604]
[1736531879810,34.23015601,192.12,191.93,34.23015601]
[1736531880013,34.23015601,192.09,191.99,2.6045]
[1736531880218,34.23015601,192.12,191.93,34.23015601]
[1736531880414,34.23015601,192.12,191.96,34.23015601]
[1736531880613,4.5428,192.17,192.02,34.23015601]
[1736531880614,2.6028,192.13,192.02,34.23015601]
[1736531880820,4.5428,192.17,192.02,34.23015601]
[1736531881213,34.23015601,192.15,191.99,34.23015601]
[1736531881612,26.02192,192.07,192.06,36.83385601]
[1736531881815,2e-05,192.07,192.06,2.6037]
[1736531882112,2e-05,192.07,192.06,36.83385601]
[1736531882545,34.23015601,192.26,192.14,2.6025]
[1736531882709,34.23015601,192.26,192.06,34.23015601]
[1736531882910,34.23015601,192.26,192.1,34.23015601]
[1736531883113,34.23015601,192.27,192.1,34.23015601]
[1736531883609,34.23015601,192.24,192.07,34.23015601]
[1736531883812,34.23015601,192.21,192.05,9.64]
[1736531884010,34.23015601,192.21,192.05,2.6037]
[1736531884229,34.23015601,192.18,192.05,2.6037]
[1736531884511,34.23015601,192.15,191.98,36.83485601]
[1736531884709,34.23015601,192.12,191.95,34.23015601]
[1736531884918,34.23015601,192.09,191.92,34.23015601]
[1736531885109,1.5774,192.11,191.92,34.23015601]
[1736531885110,34.23015601,192.06,191.92,34.23015601]
[1736531885311,34.23015601,192.06,191.89,34.23015601]
[1736531885716,34.23015601,192.03,191.86,34.23015601]
[1736531885917,1.5297,192.02,191.86,34.23015601]
[1736531886218,1.5297,192.02,191.93,2.6054]
[1736531886417,1.5297,192.02,191.89,34.23015601]
[1736531886718,1.5297,192.02,191.9,2.6058]
[1736531887119,34.23015601,192.0,191.83,34.23015601]
[1736531887436,34.23015601,191.94,191.8,34.23015601]
[1736531887618,34.23015601,191.91,191.74,93.04403329]
[1736531887825,34.23015601,191.88,191.74,61.42187728]
[1736531888230,34.23015601,191.85,191.74,58.81387728]
[1736531888426,34.23015601,191.82,191.65,34.23015601]
[1736531888630,2.6066,191.85,191.71,34.23015601]
[1736531888819,1.5192,191.87,191.77,2.6076]
[1736531889120,4.1255,191.87,191.77,2.6076]
[1736531889619,1.5192,191.87,191.71,34.23015601]
[1736531889815,2.6069,191.83,191.71,34.23015601]
[1736531890119,34.23015601,191.82,191.65,34.23015601]
[1736531890520,2.6076,191.78,191.65,34.23015601]
[1736531890721,34.23015601,191.79,191.65,34.23015601]
[1736531890926,1.5192,191.87,191.6,34.23015601]
[1736531890927,34.23015601,191.76,191.6,34.23015601]
[1736531891117,34.23015601,191.73,191.59,58.86156112]
[1736531891321,34.23015601,191.73,191.61,2.6097]
[1736531891726,86.8992,191.87,191.66,2.6091]
[1736531891727,34.23015601,191.76,191.66,2.6091]
[1736531891915,34.23015601,191.79,191.6,34.23015601]
[1736531892315,34.23015601,191.79,191.67,2.6089]
[1736531892511,34.23015601,191.82,191.66,34.23015601]
[1736531892711,34.23015601,191.85,191.66,34.23015601]
[1736531892920,34.23015601,191.79,191.63,34.23015601]
[1736531893423,34.23015601,191.82,191.66,34.23015601]
[1736531894121,34.23015601,191.85,191.75,2.6078]
[1736531894328,34.23015601,191.82,191.66,34.23015601]
[1736531894539,34.23015601,191.82,191.71,2.6084]
[1736531894818,34.23015601,191.82,191.63,34.23015601]
[1736531895012,1.5192,191.87,191.69,34.23015601]
[1736531895215,1.5192,191.87,191.72,34.23015601]
[1736531895431,1.5192,191.87,191.75,34.23015601]
[1736531895824,9.38,191.97,191.72,34.23015601]
[1736531895825,34.23015601,191.94,191.78,34.23015601]
[1736531896025,34.23015601,191.97,191.81,34.23015601]
[1736531896221,34.23015601,191.97,191.78,34.23015601]
[1736531896423,34.23015601,191.94,191.78,34.23015601]
[1736531896626,2.6056,191.93,191.78,34.23015601]
[1736531896842,34.23015601,191.94,191.83,2.6067]
[1736531897051,34.23015601,191.91,191.72,34.23015601]
[1736531897224,34.23015601,191.94,191.83,2.6067]
[1736531897525,34.23015601,191.94,191.72,34.23015601]
[1736531897720,34.23015601,191.91,191.8,2.6072]
[1736531897936,34.23015601,191.88,191.72,34.23015601]
[1736531898145,34.23015601,191.91,191.72,34.23015601]
[1736531898427,34.23015601,191.94,191.86,2.6064]
[1736531899021,34.23015601,191.91,191.75,34.23015601]
[1736531899222,34.23015601,191.88,191.72,34.23015601]
[1736531899629,34.23015601,191.91,191.72,34.23015601]
[1736531900122,34.23015601,191.91,191.85,2.6065]
[1736531900322,34.23015601,191.94,191.72,34.23015601]
[1736531900532,34.23015601,191.94,191.78,34.23015601]
[1736531900923,34.23015601,191.91,191.75,34.23015601]
[1736531901228,34.23015601,191.91,191.78,2.6074]
[1736531901429,2.6064,191.86,191.72,34.23015601]
[1736531901731,34.23015601,191.88,191.81,2.6071]
[1736531902026,34.23015601,191.91,191.72,34.23015601]
[1736531902536,2.6062,191.88,191.72,34.23015601]
[1736531902730,34.23015601,191.88,191.69,34.23015601]
[1736531903032,36.83725601,191.82,191.66,34.23015601]
[1736531903228,34.23015601,191.85,191.69,34.23015601]
[1736531903436,1.5895,191.87,191.69,34.23015601]
[1736531903624,4.1958,191.87,191.69,34.23015601]
[1736531903826,1.5895,191.87,191.69,34.23015601]
[1736531904026,1.5895,191.87,191.75,2.6079]
[1736531904229,3.1753,191.86,191.69,34.23015601]
[1736531904845,34.23015601,191.76,191.56,58.86919307]
[1736531905230,2.6079,191.75,191.56,58.86919307]
[1736531905428,34.23015601,191.76,191.56,58.86919307]
[1736531905927,2.608,191.75,191.56,58.86919307]
[1736531906126,34.23015601,191.76,191.56,58.86919307]
[1736531906329,34.23015601,191.73,191.56,58.86919307]
[1736531906523,1.5064,191.72,191.57,34.23015601]
[1736531906754,1.5064,191.72,191.69,2.6086]
[1736531906925,1.5064,191.72,191.6,34.23015601]
[1736531907135,1.6035,191.86,191.63,34.23015601]
[1736531907136,2.6076,191.78,191.63,34.23015601]
[1736531907325,2.6076,191.78,191.7,2.6085]
[1736531907728,34.23015601,191.79,191.7,2.6085]
[1736531908030,34.23015601,191.79,191.63,34.23015601]
[1736531908231,34.23015601,191.82,191.63,34.23015601]
[1736531908425,2.6075,191.78,191.71,2.6084]
[1736531908732,34.23015601,191.75,191.59,34.23015601]
[1736531909227,34.23015601,191.75,191.34,6.54352001]
[1736531909228,34.23015601,191.69,191.43,5.2244]
[1736531909425,2.6089,191.68,191.53,34.23015601]
[1736531909826,2.6089,191.68,191.63,2.6095]
[1736531910035,34.23015601,191.69,191.63,2.6095]
[1736531910331,35.83095601,191.72,191.66,2.6091]
[1736531910927,9.06,191.71,191.56,34.23015601]
[1736531911522,35.83095601,191.72,191.6,2.6099]
[1736531911728,35.83095601,191.72,191.56,34.23015601]
[1736531912241,35.83095601,191.72,191.68,2.6088]
[1736531912534,1.6008,191.72,191.59,34.23015601]
[1736531913534,1.6232,191.73,191.63,34.23015601]
[1736531913733,43.21015601,191.85,191.69,34.23015601]
[1736531913934,2.6067,191.85,191.8,2.6072]
[1736531914238,8.96,191.85,191.66,34.23015601]
[1736531914636,8.96,191.85,191.69,34.23015601]
[1736531915537,8.94,191.85,191.81,2.6071]
[1736531915739,8.94,191.85,191.69,34.23015601]
[1736531916134,34.23015601,191.79,191.43,85.48]
[1736531916337,34.23015601,191.79,191.61,34.23015601]
[1736531916539,8.94,191.85,191.5,34.23015601]
[1736531916540,34.23015601,191.73,191.58,34.23015601]
[1736531916745,2.6086,191.71,191.63,2.6094]
[1736531916944,43.19015601,191.73,191.58,34.23015601]
[1736531917130,8.96,191.73,191.58,34.23015601]
[1736531917447,43.19015601,191.73,191.58,34.23015601]
[1736531917644,8.96,191.73,191.61,34.23015601]
[1736531918536,2.6083,191.72,191.58,34.23015601]
[1736531918737,8.96,191.73,191.58,34.23015601]
[1736531919037,2.6084,191.72,191.67,2.609]
[1736531919235,43.19015601,191.73,191.58,34.23015601]
[1736531919440,8.96,191.73,191.68,2.6087]
[1736531920438,11.5682,191.73,191.68,2.6087]
[1736531920734,43.19015601,191.73,191.66,2.6091]
[1736531920937,2.6083,191.72,191.58,34.23015601]
[1736531921138,2.6083,191.72,191.62,2.6096]
[1736531921332,2.6083,191.72,191.58,34.23015601]
[1736531921542,8.96,191.73,191.61,34.23015601]
[1736531921745,3.0938,191.75,191.64,34.23015601]
[1736531921951,34.23015601,191.85,191.67,34.23015601]
[1736531922238,3.3029,191.87,191.84,2.6067]
[1736531922433,3.3029,191.87,191.76,34.23015601]
[1736531922842,1.6583,191.87,191.84,2.6067]
[1736531923040,1.6583,191.87,191.73,34.23015601]
[1736531923536,34.23015601,191.85,191.7,34.23015601]
[1736531923737,34.23015601,191.85,191.67,34.23015601]
[1736531923936,34.23015601,191.82,191.67,34.23015601]
[1736531924144,34.23015601,191.79,191.64,34.23015601]
[1736531924735,2.6078,191.76,191.64,34.23015601]
[1736531924940,34.23015601,191.82,191.64,34.23015601]
[1736531925141,2.6078,191.76,191.64,34.23015601]
[1736531925340,34.23015601,191.82,191.64,34.23015601]
[1736531925648,34.23015601,191.85,191.76,2.6076]
[1736531925941,34.23015601,191.85,191.67,34.23015601]
[1736531926441,2.6068,191.83,191.67,34.23015601]
[1736531926633,3.1487,191.86,191.7,34.23015601]
[1736531926836,3.1487,191.86,191.82,2.6069]
[1736531927139,34.23015601,191.83,191.52,15.22100926]
[1736531927338,34.23015601,191.83,191.65,34.23015601]
[1736531927541,2.6078,191.76,191.65,34.23015601]
[1736531927741,34.23015601,191.8,191.62,34.23015601]
[1736531927938,34.23015601,191.8,191.71,2.6084]
[1736531928138,34.23015601,191.77,191.62,34.23015601]
[1736531928340,42.95015601,191.77,191.59,34.23015601]
[1736531928637,2.6079,191.75,191.59,34.23015601]
[1736531928945,1.5248,191.76,191.66,2.6091]
[1736531929144,2.6082,191.73,191.59,34.23015601]
[1736531929360,1.5248,191.76,191.59,34.23015601]
[1736531929848,2.608,191.75,191.62,34.23015601]
[1736531930042,2.608,191.75,191.7,2.6085]
[1736531930247,1.5248,191.76,191.62,34.23015601]
[1736531930637,34.23015601,191.83,191.65,34.23015601]
[1736531930839,1.6446,191.86,191.68,34.23015601]
[1736531930840,3.1699,191.86,191.68,34.23015601]
[1736531931043,3.1699,191.86,191.8,2.6072]
[1736531931346,3.1699,191.86,191.68,34.23015601]
[1736531931538,3.1699,191.86,191.65,34.23015601]
[1736531931948,2.6073,191.8,191.65,34.23015601]
[1736531932137,3.1699,191.86,191.65,34.23015601]
[1736531932340,34.23015601,191.77,191.62,34.23015601]
[1736531932535,2.6082,191.74,191.62,34.23015601]
[1736531932940,2.6082,191.74,191.69,2.6087]
[1736531933262,34.23015601,191.77,191.69,2.6087]
[1736531933438,2.6082,191.73,191.68,2.6088]
[1736531933843,1.6407,191.76,191.58,58.85989805]
[1736531933844,34.23015601,191.74,191.58,58.85989805]
[1736531934044,34.23015601,191.71,191.58,58.85989805]
[1736531934554,3.1341,191.73,191.46,38.41657484]
[1736531934555,34.23015601,191.62,191.46,38.41657484]
[1736531935544,34.23015601,191.62,191.46,34.23015601]
[1736531935745,34.23015601,191.59,191.51,2.6111]
[1736531935949,3.1341,191.61,191.49,34.23015601]
[1736531936153,3.1341,191.61,191.52,2.611]
[1736531936345,3.1341,191.61,191.49,34.23015601]
[1736531937557,1.6407,191.65,191.49,34.23015601]
[1736531938052,1.6407,191.65,191.46,34.23015601]
[1736531938248,34.23015601,191.63,191.46,34.23015601]
[1736531939542,34.23015601,191.63,191.56,2.6105]
[1736531939841,36.83975601,191.63,191.56,2.6105]
[1736531940249,34.23015601,191.6,191.44,1.04471374]
[1736531940652,36.83975601,191.63,191.46,34.23015601]
[1736531940949,34.23015601,191.63,191.46,34.23015601]
[1736531941148,34.23015601,191.6,191.46,34.23015601]
[1736531941345,1.6407,191.65,191.46,34.23015601]
[1736531941657,3.2179,191.67,191.55,34.23015601]
[1736531941848,34.23015601,191.73,191.71,2.6084]
[1736531942056,34.23015601,191.73,191.58,34.23015601]
[1736531942647,34.23015601,191.73,191.7,2.6086]
[1736531943159,36.83835601,191.73,191.68,2.6089]
[1736531943547,34.23015601,191.73,191.7,2.6086]
[1736531943951,34.23015601,191.73,191.58,34.23015601]
[1736531944252,34.23015601,191.67,191.49,34.23015601]
[1736531944454,34.23015601,191.64,191.46,45.99486527]
[1736531944752,34.23015601,191.58,191.46,6.54100926]
[1736531944955,34.23015601,191.58,191.44,1.04471374]
[1736531945653,36.84045601,191.58,191.48,2.6116]
[1736531945965,34.23015601,191.58,191.4,34.23015601]
[1736531946151,34.23015601,191.61,191.46,34.23015601]
[1736531946354,34.23015601,191.64,191.46,34.23015601]
[1736531946854,34.23015601,191.61,191.57,2.6103]
[1736531947047,34.23015601,191.58,191.43,34.23015601]
[1736531947451,34.23015601,191.58,191.53,2.6108]
[1736531947657,34.23015601,191.58,191.43,34.23015601]
[1736531947953,34.23015601,191.61,191.43,34.23015601]
[1736531948554,2.6101,191.6,191.43,34.23015601]
[1736531948751,34.23015601,191.61,191.43,34.23015601]
[1736531949148,2.61,191.6,191.54,2.6106]
[1736531949349,34.23015601,191.61,191.43,34.23015601]
[1736531949558,4.7769,191.66,191.52,34.23015601]
[1736531949756,4.7769,191.66,191.65,2.6093]
[1736531949949,34.23015601,191.72,191.55,34.23015601]
[1736531950258,34.23015601,191.69,191.52,34.23015601]
[1736531951955,2.609,191.68,191.63,2.6095]
[1736531952160,34.23015601,191.69,191.52,34.23015601]
[1736531952460,4.7053,191.77,191.52,34.23015601]
[1736531952765,34.23015601,191.72,191.52,34.23015601]
[1736531952965,2.6089,191.68,191.64,2.6094]
[1736531953258,34.23015601,191.69,191.52,34.23015601]
[1736531954151,2.609,191.68,191.63,2.6095]
[1736531954559,2.609,191.68,191.52,34.23015601]
[1736531954560,34.23015601,191.69,191.52,34.23015601]
[1736531954753,2.6093,191.66,191.61,2.6097]
[1736531954955,3.0158,191.65,191.52,34.23015601]
[1736531955157,2.6095,191.63,191.58,2.6101]
[1736531955365,34.23015601,191.63,191.46,34.23015601]
[1736531955869,34.23015601,191.57,191.43,34.23015601]
[1736531956065,1.5204,191.56,191.43,34.23015601]
[1736531956758,1.5204,191.56,191.4,34.23015601]
[1736531957371,2.6107,191.55,191.5,2.6113]
[1736531957757,1.5204,191.56,191.5,2.6113]
[1736531957961,34.23015601,191.54,191.37,39.45625601]
[1736531958159,1.5907,191.53,191.37,34.23015601]
[1736531958365,1.5907,191.53,191.3,98.41144034]
[1736531958366,34.23015601,191.51,191.34,34.23015601]
[1736531958864,34.23015601,191.48,191.34,34.23015601]
[1736531959057,36.84175601,191.48,191.31,34.23015601]
[1736531959266,34.23015601,191.51,191.34,34.23015601]
[1736531959463,34.23015601,191.51,191.37,34.23015601]
[1736531959970,34.23015601,191.51,191.34,34.23015601]
[1736531960265,2.6114,191.49,191.34,34.23015601]
[1736531960458,34.23015601,191.51,191.34,34.23015601]
[1736531960663,2.6115,191.49,191.37,34.23015601]
[1736531960860,34.23015601,191.51,191.37,34.23015601]
[1736531961076,9.6507,191.53,191.4,34.23015601]
[1736531961869,12.2616,191.53,191.4,34.23015601]
[1736531962068,9.6507,191.53,191.4,34.23015601]
[1736531962264,9.6507,191.53,191.43,2.6121]
[1736531962474,12.2616,191.53,191.4,34.23015601]
[1736531962674,1.5907,191.53,191.43,34.23015601]
[1736531962871,1.5204,191.56,191.46,34.23015601]
[1736531963273,1.5204,191.56,191.55,2.6106]
[1736531963667,1.5204,191.56,191.46,34.23015601]
[1736531964045,34.23015601,191.66,191.49,34.23015601]
[1736531964279,1.5987,191.66,191.52,34.23015601]
[1736531964488,1.5987,191.66,191.65,2.6093]
[1736531964682,4.2078,191.66,191.52,34.23015601]
[1736531964871,1.5987,191.66,191.52,34.23015601]
[1736531965071,1.5987,191.66,191.49,34.23015601]
[1736531965072,35.82885601,191.66,191.49,34.23015601]
[1736531965280,2.6098,191.61,191.49,34.23015601]
[1736531965486,1.5987,191.66,191.52,34.23015601]
[1736531965677,1.5987,191.66,191.55,34.23015601]
[1736531966175,1.5987,191.66,191.62,2.6096]
[1736531966379,1.5987,191.66,191.52,34.23015601]
[1736531966976,2.6094,191.65,191.52,34.23015601]
[1736531967170,1.5987,191.66,191.52,34.23015601]
[1736531967772,1.5987,191.66,191.55,2.6106]
[1736531967990,1.5987,191.66,191.49,34.23015601]
[1736531968178,2.6098,191.61,191.49,34.23015601]
[1736531968477,34.23015601,191.63,191.46,34.23015601]
[1736531968676,34.23015601,191.59,191.43,34.23015601]
[1736531968880,34.23015601,191.59,191.51,2.6111]
[1736531969074,34.23015601,191.59,191.43,34.23015601]
[1736531969288,2.6109,191.54,191.43,34.23015601]
[1736531969872,2.6109,191.54,191.49,2.6114]
[1736531970687,34.23015601,191.59,191.4,34.23015601]
[1736531971477,34.23015601,191.56,191.4,34.23015601]
[1736531971671,2.6109,191.53,191.48,2.6114]
[1736531971877,4.8178,191.55,191.4,34.23015601]
[1736531972272,2.6112,191.52,191.46,2.6118]
[1736531972473,4.8178,191.55,191.4,34.23015601]
[1736531972774,2.6108,191.54,191.49,2.6114]
[1736531973177,4.8178,191.55,191.4,34.23015601]
[1736531973385,4.8178,191.55,191.49,2.6114]
[1736531974476,4.8178,191.55,191.52,2.6109]
[1736531974676,34.23015601,191.6,191.46,34.23015601]
[1736531974882,34.23015601,191.63,191.49,34.23015601]
[1736531975083,10.4093,191.65,191.49,34.23015601]
[1736531975480,34.23015601,191.63,191.46,34.23015601]
[1736531975684,34.23015601,191.63,191.59,2.6101]
[1736531975876,34.23015601,191.63,191.49,34.23015601]
[1736531976478,34.23015601,191.66,191.49,34.23015601]
[1736531976682,2.6093,191.65,191.49,34.23015601]
[1736531976879,34.23015601,191.66,191.59,2.61]
[1736531977089,34.23015601,191.66,191.49,34.23015601]
[1736531977278,1.6575,191.67,191.52,34.23015601]
[1736531977484,1.6575,191.67,191.63,2.6095]
[1736531977988,34.23015601,191.66,191.49,35.74865601]
[1736531978479,1.6575,191.67,191.56,34.23015601]
[1736531978682,1.6575,191.67,191.65,2.6091]
[1736531978885,1.6575,191.67,191.56,34.23015601]
[1736531979278,1.6575,191.67,191.61,2.6097]
[1736531979478,1.6575,191.67,191.53,34.23015601]
[1736531979979,4.2665,191.67,191.62,2.6096]
[1736531980180,1.6575,191.67,191.53,34.23015601]
[1736531980482,34.23015601,191.66,191.58,2.6101]
[1736531980684,2.6097,191.63,191.5,34.23015601]
[1736531981083,2.6097,191.63,191.59,2.6101]
[1736531981385,1.6575,191.67,191.53,34.23015601]
[1736531981984,3.2825,191.69,191.56,34.23015601]
[1736531982181,3.2825,191.69,191.59,2.61]
[1736531982385,3.2825,191.69,191.56,34.23015601]
[1736531982778,2.6092,191.66,191.53,34.23015601]
[1736531982981,3.2825,191.69,191.53,34.23015601]
[1736531983176,3.2825,191.69,191.63,2.6094]
[1736531983789,3.2825,191.69,191.56,34.23015601]
[1736531983980,34.23015601,191.73,191.56,34.23015601]
[1736531984181,34.23015601,191.73,191.59,34.23015601]
[1736531984483,3.2074,191.74,191.62,34.23015601]
[1736531985392,3.2074,191.74,191.59,34.23015601]
[1736531985783,2.6085,191.71,191.59,34.23015601]
[1736531985988,3.2074,191.74,191.59,34.23015601]
[1736531986189,34.23015601,191.73,191.56,34.23015601]
[1736531986387,2.6089,191.68,191.64,2.6093]
[1736531986692,3.2074,191.74,191.59,34.23015601]
[1736531986987,2.6082,191.73,191.59,34.23015601]
[1736531987481,2.6082,191.73,191.68,2.6088]
[1736531987789,2.6082,191.73,191.59,34.23015601]
[1736531987982,3.2074,191.74,191.59,34.23015601]
[1736531988183,2.6085,191.71,191.67,2.609]
[1736531988785,3.2074,191.74,191.69,2.6087]
[1736531988987,3.2074,191.74,191.59,34.23015601]
[1736531989185,34.23015601,191.73,191.59,34.23015601]
[1736531989395,2.6088,191.69,191.63,2.6095]
[1736531989585,2.6088,191.69,191.59,34.23015601]
[1736531989788,3.2074,191.74,191.59,34.23015601]
[1736531989985,2.6084,191.72,191.59,34.23015601]
[1736531990288,3.2074,191.74,191.59,34.23015601]
[1736531990685,2.6087,191.7,191.65,2.6091]
[1736531991092,2.6087,191.7,191.59,34.23015601]
[1736531991093,34.23015601,191.73,191.59,34.23015601]
[1736531991282,34.23015601,191.73,191.66,2.609]
[1736531991283,2.6085,191.71,191.66,2.609]
[1736531991586,34.23015601,191.73,191.66,2.609]
[1736531991990,2.6085,191.71,191.66,2.609]
[1736531992786,3.2074,191.74,191.59,34.23015601]
[1736531993381,2.6084,191.72,191.67,2.6089]